[Event "*** Titled Tuesday Blitz"]
[Site "Chess.com"]
[Date "2020.10.27"]
[Round "5"]
[White "QuintilianoR"]
[Black "redbaron8888"]
[Result "0-1"]
[WhiteElo "2661"]
[BlackElo "2507"]
[TimeControl "180+1"]
[EndTime "10:56:59 PDT"]
[Termination "redbaron8888 won on time"]

1. e4 {[%clk 0:03:00.9]} 1... c5 {[%clk 0:02:57.7]} 2. Nf3 {[%clk 0:03:00.2]}
2... d6 {[%clk 0:02:57.6]} 3. c3 {[%clk 0:02:58.9]} 3... Nf6 {[%clk 0:02:56.9]}
4. h3 {[%clk 0:02:58.1]} 4... Bd7 {[%clk 0:02:57.1]} 5. d3 {[%clk 0:02:52]} 5...
g6 {[%clk 0:02:55.4]} 6. Be2 {[%clk 0:02:51.8]} 6... Bg7 {[%clk 0:02:54.2]} 7.
O-O {[%clk 0:02:52.2]} 7... O-O {[%clk 0:02:54.1]} 8. Re1 {[%clk 0:02:52.4]}
8... e5 {[%clk 0:02:46.8]} 9. a3 {[%clk 0:02:50.1]} 9... Nc6 {[%clk 0:02:46.8]}
10. b4 {[%clk 0:02:46.1]} 10... b6 {[%clk 0:02:46.9]} 11. Bb2 {[%clk 0:02:44.6]}
11... Rc8 {[%clk 0:02:46.2]} 12. Bf1 {[%clk 0:02:38.2]} 12... Re8 {[%clk
0:02:45.7]} 13. Nbd2 {[%clk 0:02:37.4]} 13... h6 {[%clk 0:02:44.5]} 14. Nc4
{[%clk 0:02:36]} 14... Qc7 {[%clk 0:02:43]} 15. b5 {[%clk 0:02:34.2]} 15... Nb8
{[%clk 0:02:30.6]} 16. a4 {[%clk 0:02:31.5]} 16... Be6 {[%clk 0:02:29.9]} 17.
Rc1 {[%clk 0:02:19.7]} 17... Nh7 {[%clk 0:02:23.8]} 18. d4 {[%clk 0:02:17.7]}
18... exd4 {[%clk 0:02:19.2]} 19. cxd4 {[%clk 0:02:18.6]} 19... d5 {[%clk
0:02:10.4]} 20. exd5 {[%clk 0:01:58.5]} 20... Bxd5 {[%clk 0:02:11.3]} 21. Rxe8+
{[%clk 0:01:54.9]} 21... Rxe8 {[%clk 0:02:10.1]} 22. dxc5 {[%clk 0:01:39.9]}
22... Bxf3 {[%clk 0:01:53.4]} 23. Qxf3 {[%clk 0:01:38]} 23... Bxb2 {[%clk
0:01:43.6]} 24. Nxb2 {[%clk 0:01:37]} 24... bxc5 {[%clk 0:01:43.2]} 25. Qc3
{[%clk 0:01:16.9]} 25... Nd7 {[%clk 0:01:40.5]} 26. Nd3 {[%clk 0:01:16.6]} 26...
Rc8 {[%clk 0:01:36.1]} 27. Nb4 {[%clk 0:01:07.9]} 27... Nhf6 {[%clk 0:01:18.2]}
28. Nc6 {[%clk 0:01:05.7]} 28... Re8 {[%clk 0:01:18.3]} 29. Rd1 {[%clk
0:01:00.2]} 29... Ne4 {[%clk 0:01:05.8]} 30. Qe3 {[%clk 0:00:51.2]} 30... Kg7
{[%clk 0:00:52]} 31. Bc4 {[%clk 0:00:44.6]} 31... Nb6 {[%clk 0:00:48]} 32. Bb3
{[%clk 0:00:25.4]} 32... c4 {[%clk 0:00:46.9]} 33. Bc2 {[%clk 0:00:24.6]} 33...
Nf6 {[%clk 0:00:45.9]} 34. Qd4 {[%clk 0:00:23.3]} 34... Re6 {[%clk 0:00:30.4]}
35. a5 {[%clk 0:00:20.7]} 35... Nd5 {[%clk 0:00:26.6]} 36. Qxa7 {[%clk
0:00:18.8]} 36... Qf4 {[%clk 0:00:23.2]} 37. Qd4 {[%clk 0:00:18.1]} 37... Qg5
{[%clk 0:00:22.5]} 38. a6 {[%clk 0:00:14.7]} 38... Nf4 {[%clk 0:00:22.6]} 39.
Qxf4 {[%clk 0:00:09.5]} 39... Qxf4 {[%clk 0:00:22]} 40. a7 {[%clk 0:00:10.4]}
40... Re2 {[%clk 0:00:17.7]} 41. Rf1 {[%clk 0:00:09.1]} 41... Re8 {[%clk
0:00:15.5]} 42. Ra1 {[%clk 0:00:08.7]} 42... Ra8 {[%clk 0:00:15.2]} 43. Bd1
{[%clk 0:00:08]} 43... Qc7 {[%clk 0:00:14.6]} 44. Bf3 {[%clk 0:00:07.9]} 44...
c3 {[%clk 0:00:14.2]} 45. Rc1 {[%clk 0:00:07.1]} 45... Rxa7 {[%clk 0:00:13.6]}
46. Nxa7 {[%clk 0:00:05.3]} 46... Qxa7 {[%clk 0:00:14.5]} 47. Kh2 {[%clk
0:00:04.6]} 47... Qc5 {[%clk 0:00:14]} 48. b6 {[%clk 0:00:04.6]} 48... Qxb6
{[%clk 0:00:13.9]} 49. Rxc3 {[%clk 0:00:04.1]} 49... Qxf2 {[%clk 0:00:14.4]} 50.
Rd3 {[%clk 0:00:03.2]} 50... Qc2 {[%clk 0:00:13.9]} 51. Rd1 {[%clk 0:00:02.9]}
51... h5 {[%clk 0:00:13.1]} 52. Kg1 {[%clk 0:00:03.4]} 52... Qc5+ {[%clk
0:00:13.1]} 53. Kh1 {[%clk 0:00:02.5]} 53... g5 {[%clk 0:00:13.5]} 54. Rf1
{[%clk 0:00:02.7]} 54... g4 {[%clk 0:00:13.5]} 55. hxg4 {[%clk 0:00:03.6]} 55...
hxg4 {[%clk 0:00:14.3]} 56. Bd1 {[%clk 0:00:04.3]} 56... Qh5+ {[%clk 0:00:13.9]}
57. Kg1 {[%clk 0:00:04]} 57... Qc5+ {[%clk 0:00:14.4]} 58. Kh1 {[%clk
0:00:03.6]} 58... g3 {[%clk 0:00:13.6]} 59. Bf3 {[%clk 0:00:02.9]} 59... Qd4
{[%clk 0:00:13]} 0-1

[Event "*** Titled Tuesday Blitz"]
[Site "Chess.com"]
[Date "2020.10.27"]
[Round "5"]
[White "Zmof"]
[Black "Qvalda"]
[Result "1-0"]
[WhiteElo "2200"]
[BlackElo "2378"]
[TimeControl "180+1"]
[EndTime "10:56:59 PDT"]
[Termination "Zmof won on time"]

1. e4 {[%clk 0:02:59.5]} 1... g6 {[%clk 0:03:00.9]} 2. d4 {[%clk 0:02:57.3]}
2... Bg7 {[%clk 0:03:01.2]} 3. c3 {[%clk 0:02:56.6]} 3... d6 {[%clk 0:03:01]} 4.
Bd3 {[%clk 0:02:56.5]} 4... Nf6 {[%clk 0:02:59.4]} 5. Nf3 {[%clk 0:02:52.7]}
5... O-O {[%clk 0:02:58.4]} 6. O-O {[%clk 0:02:52.4]} 6... c5 {[%clk 0:02:59]}
7. Re1 {[%clk 0:02:50.2]} 7... cxd4 {[%clk 0:02:58.1]} 8. cxd4 {[%clk
0:02:49.6]} 8... Bg4 {[%clk 0:02:58.2]} 9. Nbd2 {[%clk 0:02:44.1]} 9... Nc6
{[%clk 0:02:57.1]} 10. h3 {[%clk 0:02:44.5]} 10... Bxf3 {[%clk 0:02:48.9]} 11.
Nxf3 {[%clk 0:02:43.9]} 11... Rc8 {[%clk 0:02:49.1]} 12. Be3 {[%clk 0:02:40.7]}
12... Qa5 {[%clk 0:02:14.3]} 13. Qd2 {[%clk 0:02:26.6]} 13... Qxd2 {[%clk
0:02:10.3]} 14. Bxd2 {[%clk 0:02:27.2]} 14... Nd7 {[%clk 0:02:10]} 15. Be3
{[%clk 0:02:23.5]} 15... Nb4 {[%clk 0:02:07.9]} 16. Bb1 {[%clk 0:02:21.8]} 16...
Nc2 {[%clk 0:02:07.8]} 17. Bxc2 {[%clk 0:02:21.6]} 17... Rxc2 {[%clk 0:02:08.7]}
18. Rab1 {[%clk 0:02:16]} 18... Rfc8 {[%clk 0:02:08.5]} 19. Rec1 {[%clk
0:02:08.8]} 19... e6 {[%clk 0:02:03.6]} 20. Kf1 {[%clk 0:02:04.6]} 20... Nb6
{[%clk 0:02:00.8]} 21. Ke1 {[%clk 0:01:53.8]} 21... d5 {[%clk 0:02:00.1]} 22. e5
{[%clk 0:01:46.4]} 22... Bf8 {[%clk 0:01:58.8]} 23. Kd1 {[%clk 0:01:43.6]} 23...
Rxc1+ {[%clk 0:01:57.6]} 24. Rxc1 {[%clk 0:01:43.9]} 24... Rxc1+ {[%clk
0:01:55.4]} 25. Kxc1 {[%clk 0:01:43.4]} 25... Be7 {[%clk 0:01:46.9]} 26. Kc2
{[%clk 0:01:42.6]} 26... Kf8 {[%clk 0:01:44.2]} 27. b3 {[%clk 0:01:41]} 27...
Ke8 {[%clk 0:01:43.8]} 28. Bd2 {[%clk 0:01:35.7]} 28... Kd7 {[%clk 0:01:42.7]}
29. Ba5 {[%clk 0:01:32.6]} 29... Nc8 {[%clk 0:01:40.6]} 30. Bd2 {[%clk 0:01:30]}
30... f6 {[%clk 0:01:33.6]} 31. exf6 {[%clk 0:01:19.4]} 31... Bxf6 {[%clk
0:01:34.5]} 32. Bf4 {[%clk 0:01:16.6]} 32... a6 {[%clk 0:01:24]} 33. Be5 {[%clk
0:01:15.4]} 33... Be7 {[%clk 0:01:22.9]} 34. Kd3 {[%clk 0:01:10.6]} 34... Na7
{[%clk 0:01:22.4]} 35. g4 {[%clk 0:01:05.1]} 35... Nc6 {[%clk 0:01:21.7]} 36. a4
{[%clk 0:00:56]} 36... Bd8 {[%clk 0:00:47.3]} 37. Nd2 {[%clk 0:00:49.5]} 37...
Bh4 {[%clk 0:00:29.5]} 38. f4 {[%clk 0:00:48.7]} 38... Bd8 {[%clk 0:00:17]} 39.
Nf3 {[%clk 0:00:46.7]} 39... Be7 {[%clk 0:00:17.1]} 40. h4 {[%clk 0:00:44.2]}
40... Na5 {[%clk 0:00:15.6]} 41. Kc2 {[%clk 0:00:43.7]} 41... Nc6 {[%clk
0:00:15]} 42. h5 {[%clk 0:00:43.2]} 42... b5 {[%clk 0:00:13.6]} 43. axb5 {[%clk
0:00:42.2]} 43... axb5 {[%clk 0:00:14.5]} 44. hxg6 {[%clk 0:00:41.5]} 44... hxg6
{[%clk 0:00:15.4]} 45. g5 {[%clk 0:00:41.3]} 45... Bb4 {[%clk 0:00:14.2]} 46.
Nh4 {[%clk 0:00:40.2]} 46... Ne7 {[%clk 0:00:13.9]} 47. Bf6 {[%clk 0:00:38.8]}
47... Bd6 {[%clk 0:00:11.9]} 48. Bxe7 {[%clk 0:00:37.4]} 48... Kxe7 {[%clk
0:00:12.8]} 49. Nxg6+ {[%clk 0:00:36.4]} 49... Kf7 {[%clk 0:00:12.9]} 50. Ne5+
{[%clk 0:00:37]} 50... Bxe5 {[%clk 0:00:04.7]} 51. dxe5 {[%clk 0:00:36.1]} 51...
Kg6 {[%clk 0:00:04.6]} 52. Kd3 {[%clk 0:00:36]} 52... Kf5 {[%clk 0:00:04.7]} 53.
Kd4 {[%clk 0:00:35.2]} 53... Kg6 {[%clk 0:00:04.5]} 54. Kc5 {[%clk 0:00:32.9]}
54... Kf5 {[%clk 0:00:04.4]} 55. Kxb5 {[%clk 0:00:33.3]} 55... d4 {[%clk
0:00:02.4]} 56. Kc4 {[%clk 0:00:33]} 56... Ke4 {[%clk 0:00:02.9]} 57. g6 {[%clk
0:00:33.6]} 57... d3 {[%clk 0:00:03.4]} 58. g7 {[%clk 0:00:34.1]} 58... d2
{[%clk 0:00:03.9]} 59. g8=Q {[%clk 0:00:34.3]} 59... d1=Q {[%clk 0:00:04]} 60.
Qxe6 {[%clk 0:00:28.9]} 60... Qd3+ {[%clk 0:00:01.8]} 61. Kc5 {[%clk 0:00:25.6]}
61... Qe3+ {[%clk 0:00:01]} 62. Kc6 {[%clk 0:00:22.9]} 1-0

[Event "*** Titled Tuesday Blitz"]
[Site "Chess.com"]
[Date "2020.10.27"]
[Round "5"]
[White "Ze-Pequeno"]
[Black "Rytenko_V"]
[Result "1-0"]
[WhiteElo "2327"]
[BlackElo "2521"]
[TimeControl "180+1"]
[EndTime "10:57:05 PDT"]
[Termination "Ze-Pequeno won by checkmate"]

1. e4 {[%clk 0:03:00.9]} 1... e6 {[%clk 0:03:00]} 2. d4 {[%clk 0:03:00.4]} 2...
d5 {[%clk 0:02:59.7]} 3. Nc3 {[%clk 0:03:00.9]} 3... Bb4 {[%clk 0:02:59]} 4. e5
{[%clk 0:03:00.9]} 4... Ne7 {[%clk 0:02:57.6]} 5. a3 {[%clk 0:03:01.1]} 5...
Bxc3+ {[%clk 0:02:57.3]} 6. bxc3 {[%clk 0:03:01.7]} 6... b6 {[%clk 0:02:57.1]}
7. Qg4 {[%clk 0:02:59.2]} 7... O-O {[%clk 0:02:57]} 8. h4 {[%clk 0:02:48.5]}
8... Kh8 {[%clk 0:02:53.9]} 9. Nf3 {[%clk 0:02:34.1]} 9... Ba6 {[%clk
0:02:41.7]} 10. Bxa6 {[%clk 0:02:31.2]} 10... Nxa6 {[%clk 0:02:41.5]} 11. Rh3
{[%clk 0:02:24.3]} 11... Qe8 {[%clk 0:02:10.6]} 12. Rg3 {[%clk 0:02:12.5]} 12...
Nf5 {[%clk 0:02:09.6]} 13. Rh3 {[%clk 0:02:10.2]} 13... c5 {[%clk 0:02:03]} 14.
Qf4 {[%clk 0:02:00.6]} 14... f6 {[%clk 0:01:50.8]} 15. g4 {[%clk 0:01:57.9]}
15... Ne7 {[%clk 0:01:34.8]} 16. exf6 {[%clk 0:01:48.1]} 16... Rxf6 {[%clk
0:01:35.7]} 17. Qe3 {[%clk 0:01:46.1]} 17... cxd4 {[%clk 0:01:28.6]} 18. cxd4
{[%clk 0:01:44.6]} 18... Rc8 {[%clk 0:01:19.3]} 19. Qd3 {[%clk 0:01:36.5]} 19...
Nb8 {[%clk 0:01:08.2]} 20. Bg5 {[%clk 0:01:23.7]} 20... Rf8 {[%clk 0:00:59.2]}
21. h5 {[%clk 0:01:08.3]} 21... Nbc6 {[%clk 0:00:39.6]} 22. h6 {[%clk
0:01:05.2]} 22... g6 {[%clk 0:00:39.8]} 23. Kf1 {[%clk 0:00:58.7]} 23... Qf7
{[%clk 0:00:38.9]} 24. Re1 {[%clk 0:00:52.6]} 24... Kg8 {[%clk 0:00:31.4]} 25.
Re2 {[%clk 0:00:50.8]} 25... Rce8 {[%clk 0:00:31.1]} 26. Kg2 {[%clk 0:00:50.3]}
26... Nc8 {[%clk 0:00:27.9]} 27. Bd2 {[%clk 0:00:43.1]} 27... Qf6 {[%clk
0:00:18.9]} 28. c3 {[%clk 0:00:35.3]} 28... Nd6 {[%clk 0:00:18.6]} 29. Ng5
{[%clk 0:00:34.7]} 29... Nc4 {[%clk 0:00:13.2]} 30. Bc1 {[%clk 0:00:33.4]} 30...
Re7 {[%clk 0:00:10.3]} 31. Rf3 {[%clk 0:00:33]} 31... Qh8 {[%clk 0:00:05.5]} 32.
Rxf8+ {[%clk 0:00:28.6]} 32... Kxf8 {[%clk 0:00:06.4]} 33. Nxe6+ {[%clk
0:00:27.7]} 33... Ke8 {[%clk 0:00:06.4]} 34. Ng7+ {[%clk 0:00:26]} 34... Kd7
{[%clk 0:00:05.1]} 35. g5 {[%clk 0:00:16.5]} 35... Qf8 {[%clk 0:00:03.9]} 36.
Qh3+ {[%clk 0:00:16]} 36... Kd8 {[%clk 0:00:02.7]} 37. Ne6+ {[%clk 0:00:15.7]}
37... Rxe6 {[%clk 0:00:03.1]} 38. Qxe6 {[%clk 0:00:15.9]} 38... Ne7 {[%clk
0:00:02.4]} 39. a4 {[%clk 0:00:09.6]} 39... Qf5 {[%clk 0:00:02.7]} 40. Qxf5
{[%clk 0:00:09.4]} 40... Nxf5 {[%clk 0:00:03.6]} 41. Bf4 {[%clk 0:00:09.1]}
41... Kd7 {[%clk 0:00:03.9]} 42. Be5 {[%clk 0:00:09.1]} 42... a6 {[%clk
0:00:04]} 43. Bf6 {[%clk 0:00:09]} 43... Kc6 {[%clk 0:00:04.3]} 44. Re6+ {[%clk
0:00:08.4]} 44... Kc7 {[%clk 0:00:03.8]} 45. Re8 {[%clk 0:00:08.2]} 45... b5
{[%clk 0:00:03.8]} 46. axb5 {[%clk 0:00:07.3]} 46... axb5 {[%clk 0:00:04.3]} 47.
Rh8 {[%clk 0:00:07.7]} 47... Ncd6 {[%clk 0:00:03.5]} 48. Rxh7+ {[%clk
0:00:08.6]} 48... Kc6 {[%clk 0:00:03.4]} 49. Rh8 {[%clk 0:00:08.1]} 49... Ne4
{[%clk 0:00:04.3]} 50. h7 {[%clk 0:00:06.6]} 50... Kd7 {[%clk 0:00:03.1]} 51.
Rd8+ {[%clk 0:00:06.2]} 51... Ke6 {[%clk 0:00:04]} 52. h8=Q {[%clk 0:00:06.7]}
52... Nfd6 {[%clk 0:00:04.2]} 53. Qf8 {[%clk 0:00:06.3]} 53... Kf5 {[%clk
0:00:05.1]} 54. Qe7 {[%clk 0:00:06.5]} 54... Kg4 {[%clk 0:00:05.7]} 55. Rxd6
{[%clk 0:00:06.5]} 55... b4 {[%clk 0:00:05.6]} 56. Qe6+ {[%clk 0:00:05.6]} 56...
Kf4 {[%clk 0:00:05.4]} 57. Qxd5 {[%clk 0:00:06.5]} 57... bxc3 {[%clk 0:00:04.4]}
58. Qe5+ {[%clk 0:00:06.7]} 58... Kg4 {[%clk 0:00:04.6]} 59. Qxe4+ {[%clk
0:00:07.1]} 59... Kh5 {[%clk 0:00:05.5]} 60. Qf3+ {[%clk 0:00:07.5]} 60... Kh4
{[%clk 0:00:05.4]} 61. Qh3# {[%clk 0:00:08.4]} 1-0

[Event "*** Titled Tuesday Blitz"]
[Site "Chess.com"]
[Date "2020.10.27"]
[Round "5"]
[White "BlackBoarder"]
[Black "infinitegiantkiller"]
[Result "0-1"]
[WhiteElo "2582"]
[BlackElo "2426"]
[TimeControl "180+1"]
[EndTime "10:57:08 PDT"]
[Termination "infinitegiantkiller won by resignation"]

1. e4 {[%clk 0:03:00.9]} 1... e6 {[%clk 0:03:00.3]} 2. d4 {[%clk 0:02:59.3]}
2... d5 {[%clk 0:03:01.2]} 3. Bd3 {[%clk 0:02:57.8]} 3... dxe4 {[%clk
0:02:58.8]} 4. Bxe4 {[%clk 0:02:57.6]} 4... Nf6 {[%clk 0:02:59.7]} 5. Bf3 {[%clk
0:02:57.2]} 5... Be7 {[%clk 0:03:00.6]} 6. Ne2 {[%clk 0:02:53.2]} 6... O-O
{[%clk 0:03:01.5]} 7. Na3 {[%clk 0:02:51.6]} 7... c5 {[%clk 0:02:39.5]} 8. Nc4
{[%clk 0:02:43.7]} 8... cxd4 {[%clk 0:02:37.7]} 9. Qxd4 {[%clk 0:02:43.2]} 9...
Bd7 {[%clk 0:02:33.4]} 10. Bxb7 {[%clk 0:02:38.1]} 10... Nc6 {[%clk 0:02:30.5]}
11. Bxc6 {[%clk 0:02:14.1]} 11... Bxc6 {[%clk 0:02:31.4]} 12. f3 {[%clk
0:02:14.5]} 12... Nd5 {[%clk 0:02:17.4]} 13. O-O {[%clk 0:02:08]} 13... Rc8
{[%clk 0:02:06.7]} 14. Kh1 {[%clk 0:01:47.4]} 14... Bb5 {[%clk 0:01:52.5]} 15.
b3 {[%clk 0:01:47.2]} 15... Bf6 {[%clk 0:01:42.4]} 16. Ne5 {[%clk 0:01:13.2]}
16... Bxe2 {[%clk 0:01:41.6]} 17. Re1 {[%clk 0:01:13]} 17... Nb6 {[%clk
0:01:20.7]} 18. Qe4 {[%clk 0:01:03]} 18... Ba6 {[%clk 0:01:16.4]} 19. c4 {[%clk
0:00:59.1]} 19... Qe7 {[%clk 0:01:01]} 20. a4 {[%clk 0:00:37.5]} 20... Rfd8
{[%clk 0:00:43.3]} 21. Ba3 {[%clk 0:00:34.4]} 21... Qc7 {[%clk 0:00:34.5]} 22.
Bb2 {[%clk 0:00:21.8]} 22... Nd7 {[%clk 0:00:29]} 23. f4 {[%clk 0:00:14.8]}
23... Nc5 {[%clk 0:00:26.5]} 24. Qe3 {[%clk 0:00:09.9]} 24... Bb7 {[%clk
0:00:22.8]} 25. Re2 {[%clk 0:00:08.9]} 25... Qe7 {[%clk 0:00:19.8]} 26. Rae1
{[%clk 0:00:08.2]} 26... Nd7 {[%clk 0:00:16.2]} 27. Kg1 {[%clk 0:00:06.6]} 27...
Qc5 {[%clk 0:00:13.8]} 28. Nxd7 {[%clk 0:00:03.6]} 28... Qxe3+ {[%clk
0:00:13.5]} 29. Rxe3 {[%clk 0:00:02.8]} 29... Rxd7 {[%clk 0:00:14.4]} 30. Bxf6
{[%clk 0:00:02.6]} 30... gxf6 {[%clk 0:00:15.3]} 31. R1e2 {[%clk 0:00:01.9]}
31... Kf8 {[%clk 0:00:15.4]} 32. Kf2 {[%clk 0:00:02.4]} 32... Ke7 {[%clk
0:00:15.8]} 33. g3 {[%clk 0:00:03]} 33... Rcd8 {[%clk 0:00:16.3]} 34. Rc3 {[%clk
0:00:03.2]} 34... Rd2 {[%clk 0:00:16.7]} 35. Ke3 {[%clk 0:00:02.2]} 35... Rxe2+
{[%clk 0:00:16.5]} 36. Kxe2 {[%clk 0:00:03.1]} 36... a5 {[%clk 0:00:16.8]} 37.
Ke3 {[%clk 0:00:02.4]} 37... Kd7 {[%clk 0:00:17.1]} 38. Rd3+ {[%clk 0:00:02.4]}
38... Kc7 {[%clk 0:00:17.5]} 39. Rxd8 {[%clk 0:00:02.5]} 39... Kxd8 {[%clk
0:00:18.4]} 40. Kd4 {[%clk 0:00:03.1]} 40... Kc7 {[%clk 0:00:19.3]} 41. Kc5
{[%clk 0:00:03.6]} 41... Bc6 {[%clk 0:00:19.4]} 42. b4 {[%clk 0:00:02.4]} 42...
axb4 {[%clk 0:00:19.8]} 43. Kxb4 {[%clk 0:00:03.2]} 43... Kb6 {[%clk 0:00:20.6]}
44. a5+ {[%clk 0:00:03.5]} 44... Ka6 {[%clk 0:00:21]} 45. Kc5 {[%clk 0:00:04]}
45... Be4 {[%clk 0:00:20.7]} 46. Kd6 {[%clk 0:00:02.1]} 46... Kxa5 {[%clk
0:00:21]} 47. Ke7 {[%clk 0:00:02.7]} 47... e5 {[%clk 0:00:20.6]} 48. Kxf6 {[%clk
0:00:02.6]} 48... exf4 {[%clk 0:00:20.8]} 49. gxf4 {[%clk 0:00:03.1]} 49... Bg6
{[%clk 0:00:21.1]} 50. f5 {[%clk 0:00:03.2]} 50... Bh5 {[%clk 0:00:21.6]} 51.
Kg5 {[%clk 0:00:02.4]} 51... Bf3 {[%clk 0:00:21.4]} 52. Kf6 {[%clk 0:00:02.3]}
52... Be4 {[%clk 0:00:21.9]} 53. Kxf7 {[%clk 0:00:01.4]} 53... Bxf5 {[%clk
0:00:21.8]} 54. Kf6 {[%clk 0:00:01.7]} 54... Bd3 {[%clk 0:00:22]} 55. c5 {[%clk
0:00:01.5]} 55... Kb5 {[%clk 0:00:22.4]} 56. Kg5 {[%clk 0:00:01.5]} 56... Kxc5
{[%clk 0:00:22.7]} 57. Kf4 {[%clk 0:00:02]} 57... Bg6 {[%clk 0:00:22.3]} 58. Kg5
{[%clk 0:00:02.3]} 58... Kd6 {[%clk 0:00:22.6]} 59. h4 {[%clk 0:00:02.8]} 59...
Bb1 {[%clk 0:00:23]} 60. Kg4 {[%clk 0:00:03.1]} 60... Ke7 {[%clk 0:00:23.9]} 61.
Kg3 {[%clk 0:00:03.4]} 61... Kf6 {[%clk 0:00:24.8]} 62. Kg4 {[%clk 0:00:04]}
62... Kg6 {[%clk 0:00:25.1]} 63. Kf4 {[%clk 0:00:04.3]} 63... Kh6 {[%clk
0:00:26]} 64. Kg3 {[%clk 0:00:04.7]} 64... Kh5 {[%clk 0:00:26.9]} 65. Kh3 {[%clk
0:00:04.9]} 65... Bf5+ {[%clk 0:00:26.9]} 66. Kg3 {[%clk 0:00:05.5]} 66... Be6
{[%clk 0:00:27.8]} 67. Kg2 {[%clk 0:00:05.3]} 67... Kxh4 {[%clk 0:00:28.5]} 68.
Kh2 {[%clk 0:00:05.9]} 68... Kg4 {[%clk 0:00:29.4]} 69. Kh1 {[%clk 0:00:06.8]}
69... h5 {[%clk 0:00:30.3]} 70. Kg1 {[%clk 0:00:07.3]} 70... h4 {[%clk
0:00:31.2]} 71. Kh1 {[%clk 0:00:07.8]} 71... Kg3 {[%clk 0:00:32.1]} 72. Kg1
{[%clk 0:00:08.4]} 72... h3 {[%clk 0:00:32.6]} 73. Kh1 {[%clk 0:00:09.3]} 73...
Bd5+ {[%clk 0:00:33.2]} 74. Kg1 {[%clk 0:00:10.2]} 74... h2+ {[%clk 0:00:34]}
75. Kf1 {[%clk 0:00:10.9]} 75... h1=Q+ {[%clk 0:00:34.9]} 76. Ke2 {[%clk
0:00:11]} 76... Qf3+ {[%clk 0:00:34.7]} 77. Kd2 {[%clk 0:00:11.4]} 0-1

[Event "*** Titled Tuesday Blitz"]
[Site "Chess.com"]
[Date "2020.10.27"]
[Round "5"]
[White "SARGISMV"]
[Black "Mazetovic"]
[Result "0-1"]
[WhiteElo "2518"]
[BlackElo "2759"]
[TimeControl "180+1"]
[EndTime "10:57:10 PDT"]
[Termination "Mazetovic won by checkmate"]

1. c4 {[%clk 0:03:00.9]} 1... Nf6 {[%clk 0:02:59.3]} 2. Nc3 {[%clk 0:03:01.4]}
2... g6 {[%clk 0:02:55.6]} 3. d4 {[%clk 0:03:00.2]} 3... Bg7 {[%clk 0:02:52.8]}
4. e4 {[%clk 0:02:59.8]} 4... d6 {[%clk 0:02:52.8]} 5. Be2 {[%clk 0:03:00]} 5...
O-O {[%clk 0:02:51.5]} 6. Nf3 {[%clk 0:03:00.6]} 6... Na6 {[%clk 0:02:51]} 7.
Be3 {[%clk 0:02:59.6]} 7... e5 {[%clk 0:02:50.6]} 8. O-O {[%clk 0:02:54.4]} 8...
c6 {[%clk 0:02:50.7]} 9. h3 {[%clk 0:02:53]} 9... exd4 {[%clk 0:02:48.6]} 10.
Nxd4 {[%clk 0:02:52.8]} 10... Re8 {[%clk 0:02:48.4]} 11. Qc2 {[%clk 0:02:38]}
11... Nc5 {[%clk 0:02:47.6]} 12. Bf3 {[%clk 0:02:35]} 12... a5 {[%clk
0:02:47.3]} 13. Rad1 {[%clk 0:02:34]} 13... Nfd7 {[%clk 0:02:42.2]} 14. Rfe1
{[%clk 0:02:24.8]} 14... Ne5 {[%clk 0:02:35.7]} 15. Be2 {[%clk 0:02:24.6]} 15...
Qh4 {[%clk 0:02:33.1]} 16. f4 {[%clk 0:02:15.2]} 16... Ned7 {[%clk 0:02:16.6]}
17. Bf3 {[%clk 0:02:10.4]} 17... Nf6 {[%clk 0:02:06.6]} 18. Qf2 {[%clk
0:01:54.9]} 18... Qxf2+ {[%clk 0:02:05.5]} 19. Bxf2 {[%clk 0:01:55.8]} 19...
Nfd7 {[%clk 0:01:51.9]} 20. g4 {[%clk 0:01:19.3]} 20... h6 {[%clk 0:01:43.3]}
21. h4 {[%clk 0:01:15.5]} 21... Nf6 {[%clk 0:01:40.8]} 22. g5 {[%clk 0:01:06.3]}
22... Ng4 {[%clk 0:01:40.4]} 23. Bg3 {[%clk 0:00:59.8]} 23... h5 {[%clk
0:01:35.3]} 24. Kg2 {[%clk 0:00:54.7]} 24... a4 {[%clk 0:01:35.3]} 25. f5 {[%clk
0:00:42.6]} 25... Ne5 {[%clk 0:01:28.2]} 26. f6 {[%clk 0:00:42.1]} 26... Bf8
{[%clk 0:01:20.3]} 27. Be2 {[%clk 0:00:27.6]} 27... Ng4 {[%clk 0:00:47.6]} 28.
Bf1 {[%clk 0:00:20.6]} 28... Ne5 {[%clk 0:00:41.7]} 29. Be2 {[%clk 0:00:18.8]}
29... Bg4 {[%clk 0:00:37.4]} 30. Bxg4 {[%clk 0:00:16.3]} 30... Nxg4 {[%clk
0:00:37.6]} 31. Nf3 {[%clk 0:00:14]} 31... Ne5 {[%clk 0:00:22.5]} 32. Nxe5
{[%clk 0:00:11.4]} 32... dxe5 {[%clk 0:00:22.7]} 33. Rd2 {[%clk 0:00:11.8]}
33... Ne6 {[%clk 0:00:20.2]} 34. Red1 {[%clk 0:00:11.4]} 34... Bb4 {[%clk
0:00:11.7]} 35. Bxe5 {[%clk 0:00:10]} 35... a3 {[%clk 0:00:10.8]} 36. bxa3
{[%clk 0:00:07.1]} 36... Rxa3 {[%clk 0:00:09.8]} 37. Nb1 {[%clk 0:00:05.2]}
37... Raa8 {[%clk 0:00:08]} 38. Rd7 {[%clk 0:00:04.6]} 38... Nc5 {[%clk
0:00:06.6]} 39. Bd6 {[%clk 0:00:03]} 39... Nxd7 {[%clk 0:00:05.9]} 40. Bxb4
{[%clk 0:00:03.6]} 40... Rxa2+ {[%clk 0:00:05.4]} 41. Kf3 {[%clk 0:00:02.9]}
41... Ne5+ {[%clk 0:00:05.8]} 42. Kf4 {[%clk 0:00:03.5]} 42... Rf2+ {[%clk
0:00:05]} 43. Ke3 {[%clk 0:00:03.4]} 43... Rf3+ {[%clk 0:00:05.5]} 44. Kd4
{[%clk 0:00:03.5]} 44... Rd8+ {[%clk 0:00:04.1]} 45. Kxe5 {[%clk 0:00:04.1]}
45... Rxd1 {[%clk 0:00:03.2]} 46. Nc3 {[%clk 0:00:05]} 46... Rxc3 {[%clk
0:00:02.2]} 47. Bxc3 {[%clk 0:00:04.7]} 47... Rd3 {[%clk 0:00:03.1]} 48. Bb4
{[%clk 0:00:04.5]} 48... Rh3 {[%clk 0:00:04]} 49. Kd6 {[%clk 0:00:04.4]} 49...
Rxh4 {[%clk 0:00:04.9]} 50. e5 {[%clk 0:00:05.2]} 50... Re4 {[%clk 0:00:05.7]}
51. Ke7 {[%clk 0:00:04.8]} 51... h4 {[%clk 0:00:06.1]} 52. Bd6 {[%clk
0:00:05.7]} 52... h3 {[%clk 0:00:06.6]} 53. Ke8 {[%clk 0:00:06.1]} 53... h2
{[%clk 0:00:07.1]} 54. Be7 {[%clk 0:00:06.3]} 54... Rxe5 {[%clk 0:00:07.3]} 55.
c5 {[%clk 0:00:05.9]} 55... Re6 {[%clk 0:00:08.2]} 56. Kd7 {[%clk 0:00:06.1]}
56... h1=Q {[%clk 0:00:09.1]} 57. Bd6 {[%clk 0:00:07]} 57... Qd5 {[%clk
0:00:09.3]} 58. Kc7 {[%clk 0:00:07.9]} 58... b6 {[%clk 0:00:09]} 59. Kxb6 {[%clk
0:00:08.8]} 59... Rxd6 {[%clk 0:00:08.9]} 60. Kc7 {[%clk 0:00:09.7]} 60... Rd7+
{[%clk 0:00:08.3]} 61. Kb6 {[%clk 0:00:10]} 61... Qe6 {[%clk 0:00:07.2]} 62. Ka6
{[%clk 0:00:10.3]} 62... Qe8 {[%clk 0:00:07.4]} 63. Kb6 {[%clk 0:00:10.6]} 63...
Qc8 {[%clk 0:00:07.4]} 64. Ka5 {[%clk 0:00:10.1]} 64... Rb7 {[%clk 0:00:07.8]}
65. Ka6 {[%clk 0:00:10.3]} 65... Qa8# {[%clk 0:00:08.7]} 0-1